bitfinex/quotes_SOLUSD_20250621
["timestamp","ask_amount","ask_price","bid_price","bid_amount"]
[1750464001122,19.01231275,140.2,140.09,18.398095]
[1750464001520,19.01231275,140.2,140.1,18.64964886]
[1750464003051,7.6513,140.22,140.1,28.64964886]
[1750464003239,7.6513,140.22,140.1,174.84964886]
[1750464004831,7.6513,140.22,140.1,164.84964886]
[1750464005031,7.6513,140.22,140.1,174.84964886]
[1750464005233,0.74,140.21,140.12,19.08964886]
[1750464005439,0.74,140.21,140.13,0.44]
[1750464005625,0.74,140.21,140.13,146.64]
[1750464005828,1.6552,140.2,140.13,146.64]
[1750464006139,0.74,140.19,140.14,0.44]
[1750464006537,2.3952,140.2,140.14,0.44]
[1750464007151,2.3952,140.2,140.15,61.08930431]
[1750464007361,1.6552,140.2,140.16,0.44]
[1750464007651,1.6552,140.2,140.17,6.5]
[1750464008335,2.3952,140.2,140.17,6.06]
[1750464008537,0.74,140.19,140.17,6.06]
[1750464009127,1.6552,140.2,140.18,7.13368526]
[1750464009326,2.3952,140.2,140.18,7.13368526]
[1750464010463,0.74,140.19,140.18,7.13368526]
[1750464011655,2.3952,140.2,140.18,7.13368526]
[1750464011825,1.6552,140.2,140.18,7.13368526]
[1750464012753,6.0467,140.22,140.19,0.44]
[1750464012942,1.6544,140.23,140.19,0.44]
[1750464013655,2.3944,140.23,140.19,0.44]
[1750464013888,0.74,140.22,140.18,207.27632471]
[1750464014267,2.3944,140.23,140.18,207.27632471]
[1750464014671,0.74,140.22,140.18,207.27632471]
[1750464014873,2.3944,140.23,140.18,206.83632471]
[1750464015171,0.74,140.22,140.18,207.27632471]
[1750464015987,1.6544,140.23,140.19,18.64964886]
[1750464016274,1.5488766,140.24,140.2,28.82]
[1750464016480,2.2888766,140.24,140.2,28.82]
[1750464016682,2.2888766,140.24,140.21,24.96255616]
[1750464017768,1.5488766,140.24,140.21,24.96255616]
[1750464017974,1.5488766,140.24,140.21,25.40255616]
[1750464019498,1.5488766,140.24,140.22,0.44]
[1750464019686,1.5488766,140.24,140.23,6.06]
[1750464020099,1.5488766,140.24,140.23,13.19114169]
[1750464020273,1.5488766,140.24,140.23,13.63114169]
[1750464020678,1.5488766,140.24,140.23,13.19114169]
[1750464022679,1.5488766,140.24,140.23,42.03114169]
[1750464024106,1.5488766,140.24,140.23,42.47114169]
[1750464026892,1.5488766,140.24,140.23,42.03114169]
[1750464029303,1.5488766,140.24,140.23,42.03114169]
[1750464030710,2.2888766,140.24,140.23,7.13114169]
[1750464031504,0.74,140.23,140.19,24.96601982]
[1750464031807,0.74,140.21,140.18,6.06]
[1750464033313,5.30527696,140.2,140.18,6.06]
[1750464033493,0.74,140.19,140.18,6.06]
[1750464034896,0.74,140.19,140.18,13.19368526]
[1750464039914,0.74,140.21,140.18,13.19368526]
[1750464042317,0.74,140.21,140.18,6.06]
[1750464046310,0.74,140.21,140.18,13.19364968]
[1750464047602,27.5698,140.22,140.18,13.19364968]
[1750464048114,0.74,140.21,140.18,13.19364968]
[1750464048324,27.5698,140.22,140.18,13.19364968]
[1750464048702,0.74,140.21,140.18,13.19364968]
[1750464048919,27.5698,140.22,140.18,13.19364968]
[1750464049594,0.74,140.21,140.18,13.19364968]
[1750464050426,0.74,140.21,140.18,6.06]
[1750464050598,0.74,140.17,140.13,6.08]
[1750464050800,0.74,140.16,140.13,6.08]
[1750464051711,0.74,140.16,140.14,7.13572142]
[1750464053205,28.3141,140.17,140.14,7.13572142]
[1750464053417,0.74,140.16,140.14,7.13572142]
[1750464053906,28.3141,140.17,140.14,7.13572142]
[1750464054110,0.74,140.16,140.14,7.13572142]
[1750464055122,0.74,140.16,140.12,24.97748891]
[1750464056318,0.74,140.16,140.12,25.41748891]
[1750464056910,1.5741,140.17,140.12,24.97748891]
[1750464057124,2.3141,140.17,140.12,25.41748891]
[1750464060025,1.5741,140.17,140.12,25.41748891]
[1750464060204,2.3141,140.17,140.12,25.41748891]
[1750464060632,2.3141,140.17,140.12,24.97748891]
[1750464060937,2.3141,140.17,140.13,0.44]
[1750464061231,2.3141,140.17,140.12,24.97748891]
[1750464061232,1.5741,140.17,140.12,24.97748891]
[1750464061428,0.74,140.19,140.13,0.44]
[1750464061746,26.74,140.2,140.13,0.44]
[1750464061901,26.74,140.2,140.14,24.97502497]
[1750464062099,0.69,140.18,140.14,7.13572142]
[1750464062715,0.69,140.15,140.12,7.13673993]
[1750464063235,0.69,140.15,140.11,13.21703811]
[1750464067036,18.64964886,140.15,140.11,13.21703811]
[1750464067241,0.69,140.14,140.11,13.21703811]
[1750464067912,18.64964886,140.15,140.11,13.21703811]
[1750464068107,0.69,140.14,140.11,13.21703811]
[1750464068313,18.64964886,140.15,140.11,13.21703811]
[1750464068729,18.64964886,140.15,140.05,7.14030703]
[1750464068730,26.69,140.12,140.05,7.14030703]
[1750464068921,6.5748,140.13,140.05,7.14030703]
[1750464068922,0.69,140.09,140.05,7.14030703]
[1750464069817,0.69,140.08,140.05,7.14030703]
[1750464070351,0.69,140.08,140.04,7.1408169]
[1750464070534,18.64964886,140.09,140.04,7.1408169]
[1750464070738,0.69,140.08,140.04,7.1408169]
[1750464071338,18.64964886,140.09,140.04,7.1408169]
[1750464071735,0.69,140.08,140.04,7.1408169]
[1750464072434,18.64964886,140.09,140.04,7.1408169]
[1750464072636,0.69,140.08,140.04,7.1408169]
[1750464074031,26.0,140.06,140.04,7.1408169]
[1750464074534,26.69,140.06,140.04,7.1408169]
[1750464075545,26.0,140.06,140.04,7.1408169]
[1750464075738,0.69,140.05,140.04,7.1408169]
[1750464076551,0.69,140.07,140.04,7.1408169]
[1750464076859,45.33964886,140.09,140.04,7.5808169]
[1750464077239,45.33964886,140.09,140.04,25.43285917]
[1750464077443,44.64964886,140.09,140.04,7.1408169]
[1750464077837,0.69,140.08,140.04,7.1408169]
[1750464078543,44.64964886,140.09,140.04,7.1408169]
[1750464079050,0.69,140.08,140.04,7.1408169]
[1750464079253,26.0,140.05,140.03,13.24130035]
[1750464079838,26.69,140.05,140.03,13.24130035]
[1750464082335,0.69,140.04,140.03,13.24130035]
[1750464083056,26.69,140.05,140.03,13.24130035]
[1750464089073,0.69,140.14,140.05,0.44]
[1750464089675,18.64964886,140.12,140.05,6.1]
[1750464089843,0.69,140.11,140.06,7.13979722]
[1750464090049,26.69,140.11,140.06,7.13979722]
[1750464090277,0.69,140.11,140.06,7.13979722]
[1750464090687,0.69,140.11,140.06,24.98929029]
[1750464090842,26.69,140.11,140.06,24.98929029]
[1750464091043,0.69,140.11,140.06,24.98929029]
[1750464091239,0.69,140.11,140.06,25.42929029]
[1750464091667,44.64964886,140.12,140.06,24.98929029]
[1750464091846,0.69,140.11,140.06,17.84949307]
[1750464092047,18.64964886,140.1,140.06,17.84949307]
[1750464092262,19.38964886,140.1,140.06,17.84949307]
[1750464092776,0.74,140.09,140.06,17.84949307]
[1750464092972,18.64964886,140.1,140.06,17.84949307]
[1750464093281,0.74,140.09,140.06,17.84949307]
[1750464093967,0.74,140.09,140.03,96.40791257]
[1750464094361,0.74,140.09,140.03,102.94791257]
[1750464097455,0.74,140.09,140.03,103.04791257]
[1750464098869,0.74,140.09,140.03,31.63464399]
[1750464099380,44.64964886,140.08,140.03,31.19464399]
[1750464099702,44.64964886,140.11,140.03,31.19464399]
[1750464099979,18.64964886,140.08,140.03,13.34132685]
[1750464100367,0.74,140.06,140.03,13.34132685]
[1750464102160,6.04678716,140.07,140.03,13.34132685]
[1750464103968,5.30678716,140.06,140.03,13.34132685]
[1750464104166,24.69573234,140.08,140.03,13.78132685]
[1750464104363,5.32442402,140.07,140.03,13.78132685]
[1750464104563,26.0,140.07,140.03,13.78132685]
[1750464105466,26.0,140.07,140.05,7.14030703]
[1750464106987,26.74,140.07,140.04,7.1408169]
[1750464107293,26.0,140.07,140.04,24.99285917]
[1750464110077,26.0,140.07,140.04,25.43285917]
[1750464112388,5.33209989,140.08,140.04,25.43285917]
[1750464112701,5.34018765,140.07,140.04,25.43285917]
[1750464112884,2.67009318,140.08,140.04,25.43285917]
[1750464113088,5.34042098,140.07,140.04,25.43285917]
[1750464113286,2.67009318,140.08,140.04,25.43285917]
[1750464113482,5.3404197,140.07,140.04,25.43285917]
[1750464113689,3.41009318,140.08,140.04,25.43285917]
[1750464113985,10.68082829,140.07,140.04,24.99285917]
[1750464114294,7.38801517,140.14,140.08,0.44]
[1750464114497,10.67736441,140.13,140.07,26.0]
[1750464114799,5.33552184,140.13,140.09,0.44]
[1750464114992,45.38964886,140.16,140.08,29.1]
[1750464115169,10.66402988,140.15,140.09,6.64]
[1750464115371,5.32746469,140.15,140.1,0.44]
[1750464115575,5.32746469,140.15,140.1,24.98215559]
[1750464115774,0.74,140.16,140.1,24.98215559]
[1750464116075,11.39779104,140.16,140.11,0.44]
[1750464116276,10.65779104,140.16,140.11,0.44]
[1750464116479,23.97577966,140.17,140.11,0.44]
[1750464116689,18.64964886,140.2,140.11,0.44]
[1750464116885,39.31542359,140.19,140.11,0.44]
[1750464117099,10.65213582,140.18,140.11,0.44]
[1750464117307,5.32556028,140.18,140.11,0.44]
[1750464117486,32.06556028,140.19,140.11,0.44]
[1750464117803,26.0,140.16,140.12,24.97858977]
[1750464118114,0.74,140.15,140.12,24.97858977]
[1750464119095,26.0,140.16,140.12,24.97858977]
[1750464119295,18.64964886,140.15,140.12,7.13673993]
[1750464119504,36.63755223,140.15,140.12,7.13673993]
[1750464119700,0.74,140.14,140.09,24.9829407]
[1750464120292,5.31844085,140.14,140.09,24.9829407]
[1750464120496,0.74,140.13,140.09,24.9829407]
[1750464121803,18.64964886,140.14,140.09,24.9829407]
[1750464122009,0.68,140.13,140.09,24.9829407]
[1750464122211,23.96725248,140.14,140.09,24.9829407]
[1750464122382,26.0,140.12,140.09,7.13826825]
[1750464122583,0.68,140.11,140.09,7.13826825]
[1750464124409,26.68,140.12,140.09,7.13826825]
[1750464125305,26.0,140.12,140.09,7.13826825]
[1750464125511,26.0,140.12,140.09,24.98393889]
[1750464126098,19.32964886,140.14,140.09,24.98393889]
[1750464126099,45.32964886,140.14,140.09,24.98393889]
[1750464126611,45.32964886,140.14,140.09,25.42393889]
[1750464126805,26.68,140.14,140.09,25.42393889]
[1750464127107,26.0,140.1,140.08,13.33861587]
[1750464127314,26.0,140.1,140.02,154.3543]
[1750464127315,26.0,140.1,140.04,24.99174313]
[1750464127482,0.68,140.08,140.04,24.99174313]
[1750464128528,0.68,140.08,140.04,17.85092623]
[1750464129803,23.97000467,140.09,140.04,17.85092623]
[1750464130008,0.68,140.07,140.03,7.14132685]
[1750464131911,6.00141314,140.07,140.03,7.14132685]
[1750464132898,0.68,140.07,140.03,7.14132685]
[1750464133093,0.68,140.06,140.03,7.14132685]
[1750464133414,0.68,140.03,140.02,6.2]
[1750464133813,26.0,140.02,140.0,7.14267914]
[1750464133992,0.68,140.03,139.99,7.14336738]
[1750464133993,26.68,140.03,139.99,7.14336738]
[1750464134194,26.0,140.02,139.99,7.14336738]
[1750464135302,19.32964886,140.02,139.96,7.14488221]
[1750464135500,5.3244323,140.02,139.97,55.81344886]
[1750464135807,5.32083894,140.1,140.03,0.44]
[1750464136006,10.6390319,140.12,140.09,26.0]
[1750464136207,13.29603035,140.17,140.09,26.0]
[1750464136208,5.32083894,140.19,140.1,35.58]
[1750464136416,5.31489259,140.19,140.12,6.4631]
[1750464136620,23.9633721,140.19,140.12,6.4631]
[1750464136825,5.99372324,140.18,140.12,6.4631]
[1750464137622,26.0,140.18,140.13,7.13623064]
[1750464137825,26.68,140.17,140.13,7.13623064]
[1750464138023,0.68,140.17,140.13,7.13623064]
[1750464138733,26.0,140.17,140.13,7.13623064]
[1750464138902,0.68,140.16,140.13,7.13623064]
[1750464139610,0.68,140.16,140.11,7.1372493]
[1750464140423,26.0,140.17,140.11,7.1372493]
[1750464141608,18.64964886,140.16,140.11,7.1372493]
[1750464141801,0.68,140.15,140.11,7.1372493]
[1750464143126,0.68,140.15,140.1,7.13775874]
[1750464145410,0.68,140.15,140.1,24.98215559]
[1750464145735,0.68,140.17,140.1,25.42215559]
[1750464145920,26.0,140.18,140.11,0.44]
[1750464146307,26.0,140.18,140.12,24.97858977]
[1750464150824,26.0,140.18,140.12,26.55688977]
[1750464151936,26.68,140.18,140.12,26.55688977]
[1750464152109,26.0,140.15,140.1,7.13729734]
[1750464152436,0.68,140.12,140.1,7.13729734]
[1750464152821,0.68,140.12,140.09,7.13826825]
[1750464155142,26.68,140.13,140.09,7.13826825]
[1750464155314,26.0,140.13,140.09,24.98393889]
[1750464155516,26.0,140.13,140.09,25.42393889]
[1750464156514,26.0,140.13,140.09,24.98393889]
[1750464156714,0.68,140.12,140.09,7.13826825]
[1750464156923,18.64964886,140.12,140.08,13.35861189]
[1750464157110,0.68,140.11,140.08,13.35861189]
[1750464158529,45.32964886,140.12,140.08,13.35861189]
[1750464158732,26.68,140.12,140.08,31.20555649]
[1750464158947,26.0,140.12,140.08,31.20555649]
[1750464160663,26.68,140.12,140.08,31.20555649]
[1750464161930,26.68,140.12,140.08,13.35861189]
[1750464162138,0.68,140.11,140.08,13.35861189]
[1750464164849,26.68,140.12,140.08,13.35861189]
[1750464170355,26.0,140.12,140.08,13.79861189]
[1750464171558,26.68,140.12,140.08,13.79861189]
[1750464171928,26.68,140.12,140.08,13.35861189]
[1750464172137,26.0,140.12,140.08,13.35861189]
[1750464172358,0.68,140.11,140.08,13.35861189]
[1750464177763,26.68,140.12,140.08,13.35861189]
[1750464179629,31.32262061,140.12,140.08,13.35861189]
[1750464179830,0.68,140.11,140.08,13.35861189]
[1750464180233,6.00262061,140.11,140.08,13.35861189]
[1750464180768,0.68,140.11,140.08,13.35861189]
[1750464182154,26.0,140.12,140.08,13.35861189]
[1750464182357,0.69,140.1,140.08,13.35861189]
[1750464183435,0.69,140.11,140.08,13.35861189]
[1750464184375,6.65327577,140.2,140.13,26.0]
[1750464184545,7.99558279,140.21,140.17,26.0]
[1750464184870,5.33042371,140.23,140.18,18.64964886]
[1750464185167,5.33042371,140.23,140.22,26.0]
[1750464185348,1.5488766,140.24,140.2,32.36]
[1750464186041,1.5488766,140.24,140.21,24.96255616]
[1750464190342,2.2388766,140.24,140.21,24.96255616]
[1750464190543,0.69,140.23,140.21,7.1321589]
[1750464191555,1.5488766,140.24,140.19,7.1331764]
[1750464191750,0.69,140.23,140.19,7.1331764]
[1750464191953,18.64964886,140.22,140.19,7.1331764]
[1750464192160,18.64964886,140.2,140.18,7.13355234]
[1750464192467,0.69,140.19,140.18,7.13355234]
[1750464192638,0.69,140.19,140.16,7.13470319]
[1750464192842,18.64964886,140.2,140.16,7.13470319]
[1750464193070,0.69,140.19,140.16,7.13470319]
[1750464193270,18.64964886,140.2,140.16,7.13470319]
[1750464193443,8.36,140.22,140.16,24.97146118]
[1750464193753,8.36,140.22,140.16,17.83675799]
[1750464194876,8.36,140.22,140.14,24.97502497]
[1750464195564,26.0,140.19,140.14,24.97502497]
[1750464196845,26.69,140.19,140.14,24.97502497]
[1750464197172,0.69,140.18,140.14,24.97502497]
[1750464197884,26.0,140.19,140.14,24.97502497]
[1750464198245,18.64964886,140.2,140.14,24.97502497]
[1750464198246,0.69,140.16,140.14,7.13572142]
[1750464198868,0.69,140.16,140.13,7.13623064]
[1750464200279,26.69,140.17,140.13,24.97680724]
[1750464202370,0.69,140.16,140.13,7.13623064]
[1750464202574,0.69,140.14,140.12,13.51655082]
[1750464205161,0.69,140.13,140.07,24.22702861]
[1750464205469,26.69,140.12,140.07,24.22702861]
[1750464205776,0.69,140.11,140.08,7.13877784]
[1750464209066,26.0,140.12,140.08,7.13877784]
[1750464209067,26.69,140.12,140.08,7.13877784]
[1750464209484,26.0,140.12,140.08,7.13877784]
[1750464209780,0.69,140.11,140.08,7.13877784]
[1750464216586,26.52614886,140.15,140.08,24.98572244]
[1750464216587,7.8765,140.15,140.08,24.98572244]
[1750464216891,27.5328,140.15,140.08,54.32572244]
[1750464220369,0.73,140.14,140.08,54.32572244]
[1750464220572,0.73,140.11,140.08,7.13877784]
[1750464220773,0.73,140.1,140.08,7.13877784]
[1750464222299,0.73,140.08,140.07,6.38]
[1750464222596,0.73,140.08,140.05,7.14030703]
[1750464222893,0.73,140.08,140.02,13.50162874]
[1750464222894,0.73,140.06,140.02,13.50162874]
[1750464223290,44.64964886,140.06,140.02,13.50162874]
[1750464223488,44.64964886,140.06,140.02,7.14162874]
[1750464223798,0.73,140.05,139.98,7.14387769]
[1750464224014,0.73,140.05,139.98,25.00357193]
[1750464226312,8.71938942,140.08,139.98,86.72296041]
[1750464226313,1.5804,140.08,139.98,86.72296041]
[1750464226816,1.5804,140.08,139.99,18.64964886]
[1750464227006,8.1839,140.12,140.0,1.6209]
[1750464227211,18.64964886,140.11,140.01,29.38]
[1750464227413,26.0,140.1,140.01,29.38]
[1750464228101,26.0,140.1,140.02,24.99642908]
[1750464228407,26.0,140.1,140.03,6.36]
[1750464229205,26.0,140.1,140.04,24.99285917]
[1750464233712,0.73,140.09,140.04,24.99285917]
[1750464233881,26.0,140.1,140.04,24.99285917]
[1750464234083,0.73,140.09,140.04,24.99285917]
[1750464237204,18.64964886,140.09,140.04,24.99285917]
[1750464237407,0.73,140.08,140.04,24.99285917]
[1750464238019,18.64964886,140.09,140.04,7.1408169]
[1750464238514,0.73,140.08,140.02,24.99631233]
[1750464244630,18.64964886,140.09,140.02,24.99631233]
[1750464244933,26.0,140.09,140.02,24.99631233]
[1750464245714,5.32163016,140.11,140.02,24.99631233]
[1750464245918,5.32234913,140.1,140.02,60.70549673]
[1750464246118,31.32163016,140.11,140.02,60.70549673]
[1750464246437,5.32234913,140.1,140.02,60.70549673]
[1750464247027,32.06163016,140.11,140.02,60.70549673]
[1750464247223,0.74,140.09,140.02,60.70549673]
[1750464249728,23.97821753,140.1,140.02,60.70549673]
[1750464249912,26.74,140.11,140.02,60.70549673]
[1750464250235,6.07007048,140.1,140.02,60.70549673]
[1750464250414,0.74,140.1,140.02,60.70549673]
[1750464251243,31.3288692,140.11,140.02,60.70549673]
[1750464251244,26.0,140.08,140.02,60.70549673]
[1750464251409,26.74,140.08,140.02,60.70549673]
[1750464253636,0.74,140.08,140.02,60.70549673]
[1750464253850,8.73478419,140.1,140.03,29.28]
[1750464254134,8.1839,140.12,140.06,26.0]
[1750464254320,10.66154402,140.11,140.06,26.0]
[1750464254520,32.16361408,140.12,140.06,26.0]
[1750464254746,5.33107481,140.11,140.06,26.0]
[1750464254919,6.07118071,140.1,140.04,26.0]
[1750464255233,0.74,140.1,140.04,26.0]
[1750464255629,0.74,140.1,140.05,24.99107461]
[1750464256142,7.9956574,140.11,140.05,24.99107461]
[1750464256436,0.74,140.09,140.05,24.99107461]
[1750464257517,0.74,140.09,140.05,17.85076758]
[1750464257940,0.74,140.07,140.04,7.1408169]
[1750464258539,5.33359429,140.06,140.04,7.1408169]
[1750464258832,0.74,140.05,140.02,7.14183688]
[1750464259014,6.07259802,140.04,140.02,7.14183688]
[1750464259210,0.74,140.04,140.02,7.14183688]
[1750464259439,6.07259802,140.04,140.02,7.14183688]
[1750464259645,0.74,140.04,140.02,7.14183688]
[1750464259809,6.07259802,140.04,140.02,7.14183688]
[1750464260009,0.74,140.04,140.02,7.14183688]
[1750464260945,0.74,140.04,140.01,13.50214216]
[1750464261241,0.74,140.04,140.01,7.14214216]
[1750464262049,31.33240591,140.05,140.01,7.14214216]
[1750464262343,6.07395914,140.04,139.97,25.00414157]
[1750464262644,5.33395914,140.03,139.97,25.00414157]
[1750464262948,6.07029937,140.04,139.97,25.00414157]
[1750464263827,5.33029937,140.03,139.97,25.00414157]
[1750464264129,0.74,140.04,139.97,25.00414157]
[1750464264313,5.33589649,140.03,139.97,25.00414157]
[1750464264512,3.40801292,140.04,139.97,25.00414157]
[1750464264823,24.7218896,140.03,139.97,25.00414157]
[1750464265049,19.38964886,140.03,139.97,25.00414157]
[1750464269530,0.74,140.02,139.97,25.00414157]
[1750464271229,18.64964886,140.03,139.97,25.00414157]
[1750464271425,0.74,140.02,139.97,25.00414157]
[1750464271627,0.74,140.0,139.97,25.00414157]
[1750464278158,2.1959,140.01,139.97,25.00414157]
[1750464278726,2.28,140.05,139.97,25.00414157]
[1750464278942,6.92074476,140.05,139.97,31.08594157]
[1750464279250,27.6,140.05,139.98,29.38]
[1750464279629,26.0,140.04,139.98,29.38]
[1750464280037,26.0,140.04,139.99,25.00178583]
[1750464283347,26.68,140.06,139.99,25.00178583]
[1750464284949,26.68,140.06,139.99,60.71862274]
[1750464285135,26.0,140.06,139.99,60.71862274]
[1750464285327,26.68,140.08,139.99,60.71862274]
[1750464285527,26.68,140.08,139.99,206.91862274]
[1750464287657,26.0,140.07,139.99,206.91862274]
[1750464287827,19.32964886,140.1,139.99,268.63545965]
[1750464288033,26.0,140.09,139.99,268.63545965]
[1750464288757,26.68,140.09,139.99,268.63545965]
[1750464289957,0.68,140.08,139.99,268.63545965]
[1750464290160,0.68,140.06,140.0,29.32]
[1750464290962,0.68,140.06,140.01,24.9982144]
[1750464292366,26.0,140.07,140.01,24.9982144]
[1750464294643,26.68,140.07,140.01,24.9982144]
[1750464296773,26.0,140.07,140.01,24.9982144]
[1750464297266,0.68,140.06,140.01,24.9982144]
[1750464298065,26.0,140.07,140.01,24.9982144]
[1750464298243,0.68,140.06,140.01,24.9982144]
[1750464298445,26.0,140.07,140.01,24.9982144]
[1750464298643,0.68,140.06,140.01,24.9982144]
[1750464299074,26.0,140.07,140.01,24.9982144]
[1750464299657,0.68,140.06,140.01,24.9982144]
[1750464300377,26.0,140.07,140.01,60.70994927]
[1750464301662,26.68,140.07,140.01,60.70994927]
[1750464301987,0.71,140.06,140.01,24.9982144]
[1750464302151,26.0,140.07,140.01,24.9982144]
[1750464302345,0.71,140.05,140.01,17.85586743]
[1750464302578,0.71,140.05,140.0,7.14285714]
[1750464302758,0.71,140.04,140.0,7.14285714]
[1750464303144,5.33260628,140.05,140.0,7.14285714]
[1750464303482,0.71,140.03,140.0,7.14285714]
[1750464303691,0.71,140.03,139.99,25.00165352]
[1750464304862,5.33221309,140.04,139.99,25.00165352]
[1750464305058,31.33221309,140.03,139.99,7.14336738]
[1750464305381,6.04380968,140.02,139.99,7.14336738]
[1750464305878,0.71,140.02,139.99,7.14336738]
[1750464306085,5.3337377,140.02,139.98,7.14387769]
[1750464306255,0.71,140.01,139.98,7.14387769]
[1750464307368,6.04379833,140.01,139.98,7.14387769]
[1750464307551,0.71,140.01,139.98,7.14387769]
[1750464307750,6.04379833,140.01,139.98,7.14387769]
[1750464307960,0.71,140.01,139.98,7.14387769]
[1750464308171,0.71,140.0,139.97,7.14438808]
[1750464310580,0.61,140.0,139.97,7.14438808]
[1750464313152,5.33191126,140.02,139.97,7.14438808]
[1750464313367,6.04073742,140.02,139.97,7.14438808]
[1750464313672,26.0,140.01,139.97,7.24438808]
[1750464314183,26.0,140.01,139.97,25.10535828]
[1750464315956,26.71,140.01,139.97,25.00535828]
[1750464321603,0.71,140.03,139.97,25.00535828]
[1750464321984,26.0,140.04,139.98,0.1]
[1750464322182,0.71,140.03,139.97,25.00535828]
[1750464322490,6.04088399,140.03,139.97,25.00535828]
[1750464322873,0.71,140.03,139.97,25.00535828]
[1750464323068,6.04086253,140.03,139.97,25.10535828]
[1750464323976,0.71,140.03,139.97,25.10535828]
[1750464326378,26.0,140.04,139.98,0.1]
[1750464327070,26.71,140.04,139.98,0.1]
[1750464328888,26.71,140.04,139.97,25.00535828]
[1750464329114,26.71,140.04,139.98,0.1]
[1750464331986,18.64964886,140.07,139.98,26.1]
[1750464332187,6.05148301,140.06,140.0,0.1]
[1750464332494,0.72,140.06,140.0,0.1]
[1750464333197,0.72,140.06,140.02,26.0]
[1750464333870,0.72,140.06,140.03,24.99464399]
[1750464335092,0.72,140.08,140.01,0.1]
[1750464336475,0.72,140.08,140.02,6.36]
[1750464338177,0.72,140.08,140.03,24.99464399]
[1750464338790,23.98113187,140.09,140.03,24.99464399]
[1750464340093,0.72,140.08,140.03,24.99464399]
[1750464340711,23.98113187,140.09,140.03,24.99464399]
[1750464341207,0.72,140.08,140.03,24.99464399]
[1750464341684,23.98113187,140.09,140.03,24.99464399]
[1750464342001,0.72,140.08,140.03,24.99464399]
[1750464342614,23.98113187,140.09,140.03,24.99464399]
[1750464342995,0.72,140.08,140.03,24.99464399]
[1750464343309,23.98113187,140.09,140.03,24.99464399]
[1750464343703,0.72,140.08,140.03,24.99464399]
[1750464345409,26.0,140.04,140.02,13.50165024]
[1750464345614,0.72,140.03,140.02,7.14165024]
[1750464346485,0.72,140.03,140.0,7.14285714]
[1750464346898,0.72,140.07,140.0,24.99999999]
[1750464347093,23.55048913,140.09,140.0,24.99999999]
[1750464347094,26.0,140.05,140.0,24.99999999]
[1750464347307,26.0,140.05,140.0,25.09999999]
[1750464347897,0.72,140.06,140.0,25.09999999]
[1750464350508,0.72,140.06,140.0,24.99999999]
[1750464352515,5.32860167,140.06,140.0,24.99999999]
[1750464352918,0.72,140.04,140.0,24.99999999]
[1750464355935,0.72,140.04,140.0,25.09999999]
[1750464356108,5.3349311,140.05,140.0,25.09999999]
[1750464356407,0.72,140.05,140.0,25.09999999]
[1750464357413,7.99606711,140.06,140.0,25.09999999]
[1750464357613,5.33531357,140.05,140.0,25.09999999]
[1750464357831,0.72,140.05,140.0,25.09999999]
[1750464358314,7.99606711,140.06,140.0,25.09999999]
[1750464358637,0.72,140.04,140.0,25.09999999]
[1750464359703,5.32860167,140.05,140.0,25.09999999]
[1750464359908,26.0,140.07,140.01,0.1]
[1750464360134,5.336771,140.06,140.01,0.1]
[1750464360310,26.0,140.07,140.01,6.2419]
[1750464360519,26.72,140.07,140.02,0.1]
[1750464361009,26.0,140.07,140.02,0.1]
[1750464361215,26.0,140.07,140.01,6.2419]
[1750464361806,26.0,140.07,140.02,24.99642908]
[1750464362008,26.0,140.07,140.03,0.1]
[1750464365928,0.74,140.05,140.01,7.14234697]
[1750464366134,5.33972334,140.04,140.01,7.14234697]
[1750464366322,6.07972334,140.03,140.01,7.14234697]
[1750464366516,5.3414484,140.02,139.98,6.34]
[1750464366713,0.74,140.02,139.98,6.34]
[1750464366919,5.34192259,140.01,139.98,6.34]